[Event "Turkish Championship 2019"]
[Site "Antalya-Kemer"]
[Date "2019.11.30"]
[Round "8.4"]
[White "Sevgi, Volkan"]
[Black "Koksal, Ege"]
[Result "1-0"]
[ECO "C54"]
[WhiteElo "2325"]
[BlackElo "2375"]
[Annotator "NA"]
[PlyCount "115"]
[EventDate "2019.11.23"]
[EventType "tourn"]
[EventCountry "TUR"]
[SourceTitle "playchess.com"]
[Source "ChessBase"]
[SourceQuality "1"]
[TimeControl "40/5400+30:1800+30"]

1. e4 {[%emt 0:00:30]} e5 {[%emt 0:00:30]} 2. Nf3 {[%emt 0:00:30]} Nc6 {[%emt 0:00:00]} 3. Bc4 {[%emt 0:00:00]} Bc5 {[%emt 0:00:00]} 4. c3 {[%emt 0:00:00]} Nf6 {[%emt 0:00:00]} 5. d4 {[%emt 0:00:00]} exd4 {[%emt 0:01:00]} 6. e5 {[%emt 0:00:00]} d5 {[%emt 0:00:30]} 7. Bb5 {[%emt 0:00:30]} Ne4 {[%emt 0:02:30]} 8. cxd4 {[%emt 0:00:00]} Bb6 {[%emt 0:05:30]} 9. Nc3 {[%emt 0:00:00]} O-O {[%emt 0:00:30]} 10. Be3 {[%emt 0:00:30]} Bg4 {[%emt 0:02:30]} 11. h3 {[%emt 0:00:30]} Bh5 {[%emt 0:01:30]} 12. Qc2 {[%emt 0:00:00]} Ba5 {[%emt 0:03:30]} 13. O-O {[%emt 0:04:00]} Bxf3 {[%emt 0:10:30]} 14. gxf3 {[%emt 0:05:30]} Nxd4 {[%emt 0:10:30]} 15. Bxd4 {[%emt 0:02:30]} Bxc3 {[%emt 0:01:30]} 16. Be3 {[%emt 0:11:30]} Bxe5 {[%emt 0:00:00]} 17. fxe4 {[%emt 0:01:30]} Qh4 {[%emt 0:00:00]} 18. Kg2 {[%emt 0:36:30]} dxe4 {[%emt 0:02:30]} 19. f4 {[%emt 0:00:30]} exf3+ {[%emt 0:01:30]} 20. Rxf3 {[%emt 0:00:30]} Kh8 {[%emt 0:03:30]} 21. Qf5 {[%emt 0:04:30]} f6 {[%emt 0:01:30]} 22. Bd3 {[%emt 0:04:30]} Rad8 {[%emt 0:01:30]} 23. Bf2 {[%emt 0:15:27]} Qh6 {[%emt 0:01:30]} 24. Be3 {[%emt 0:00:13]} Qh4 {[%emt 0:01:30]} 25. Rd1 {[%emt 0:00:30]} b6 {[%emt 0:00:30]} 26. b3 {[%emt 0:00:56]} c5 {[%emt 0:01:30]} 27. Qg4 {[%emt 0:02:12]} Qxg4+ {[%emt 0:00:30]} 28. hxg4 {[%emt 0:00:01]} Rd6 {[%emt 0:01:30]} 29. Bc2 {[%emt 0:00:26]} Rxd1 {[%emt 0:00:30]} 30. Bxd1 {[%emt 0:00:30]} Rd8 {[%emt 0:00:00]} 31. Be2 {[%emt 0:00:25]} Kg8 {[%emt 0:02:00]} 32. Rf1 {[%emt 0:00:10]} Kf7 {[%emt 0:00:30]} 33. Kf3 {[%emt 0:00:14]} Ke7 {[%emt 0:00:30]} 34. Rh1 {[%emt 0:00:28]} h6 {[%emt 0:00:30]} 35. Ke4 {[%emt 0:01:00]} Bd4 {[%emt 0:02:30]} 36. Rd1 {[%emt 0:02:03]} Bxe3 {[%emt 0:00:30]} 37. Rxd8 {[%emt 0:00:00]} Kxd8 {[%emt 0:00:00]} 38. Kxe3 {[%emt 0:00:00]} g6 {[%emt 0:00:00]} 39. Bd3 {[%emt 0:00:00]} h5 {[%emt 0:00:30]} 40. Bxg6 {[%emt 0:02:47]} hxg4 {[%emt 0:00:00]} 41. Kf4 {[%emt 0:07:08]} Kc7 {[%emt 0:01:00]} 42. Kxg4 {[%emt 0:03:30]} b5 {[%emt 0:00:30]} 43. Kf4 {[%emt 0:02:30]} Kb6 {[%emt 0:00:00]} 44. Bc2 {[%emt 0:01:30]} a5 {[%emt 0:10:00]} 45. Ke3 {[%emt 0:01:30]} Kc6 {[%emt 0:02:30]} 46. Be4+ {[%emt 0:01:30]} Kd6 {[%emt 0:01:30]} 47. Bd3 {[%emt 0:01:30]} Kc6 {[%emt 0:00:00]} 48. Be4+ {[%emt 0:05:41]} Kd6 {[%emt 0:00:00]} 49. Kd3 {[%emt 0:00:13]} Kc7 {[%emt 0:00:30]} 50. Kc3 {[%emt 0:00:46]} Kb6 {[%emt 0:00:30]} 51. Bg6 {[%emt 0:00:29]} Kc7 {[%emt 0:00:30]} 52. Be8 {[%emt 0:00:37]} Kb6 {[%emt 0:00:30]} 53. a4 {[%emt 0:00:15]} bxa4 {[%emt 0:00:30]} 54. bxa4 {[%emt 0:00:11]} f5 {[%emt 0:00:30]} 55. Bh5 {[%emt 0:00:12]} Kc6 {[%emt 0:02:30]} 56. Kc4 {[%emt 0:00:07]} f4 {[%emt 0:00:00]} 57. Bf3+ {[%emt 0:00:34]} Kd6 {[%emt 0:00:00]} 58. Bh1 {[%emt 0:00:00]} 1-0

[Event "Turkish Championship 2019"]
[Site "Antalya-Kemer"]
[Date "2019.12.01"]
[Round "9.2"]
[White "Yuksel, Atilla Koksal"]
[Black "Sevgi, Volkan"]
[Result "1-0"]
[ECO "B20"]
[WhiteElo "2250"]
[BlackElo "2325"]
[Annotator "ChessBase"]
[PlyCount "130"]
[EventDate "2019.11.23"]
[EventType "tourn"]
[EventCountry "TUR"]
[SourceTitle "playchess.com"]
[Source "ChessBase"]
[SourceQuality "1"]
[TimeControl "40/5400+30:1800+30"]

1. e4 {[%emt 0:01:30]} c5 {[%emt 0:00:30]} 2. Nc3 {[%emt 0:00:30]} a6 {[%emt 0:01:30]} 3. a4 {[%emt 0:00:30]} e6 {[%emt 0:00:30]} 4. Bc4 {[%emt 0:00:30]} Nf6 {[%emt 0:00:30]} 5. e5 {[%emt 0:08:30]} d5 {[%emt 0:00:30]} 6. exf6 {[%emt 0:00:30]} dxc4 {[%emt 0:00:00]} 7. fxg7 {[%emt 0:00:30]} Bxg7 {[%emt 0:00:00]} 8. Qg4 {[%emt 0:00:30]} O-O {[%emt 0:25:30]} 9. Qxc4 {[%emt 0:03:30]} Nc6 {[%emt 0:00:30]} 10. Nf3 {[%emt 0:06:30]} Nd4 {[%emt 0:03:30]} 11. Nxd4 {[%emt 0:05:30]} cxd4 {[%emt 0:00:30]} 12. Ne4 {[%emt 0:02:30]} b5 {[%emt 0:10:30]} 13. Qe2 {[%emt 0:04:30]} Qd5 {[%emt 0:03:30]} 14. O-O {[%emt 0:05:30]} Bb7 {[%emt 0:00:30]} 15. f3 {[%emt 0:00:30]} f5 {[%emt 0:02:30]} 16. Nf2 {[%emt 0:02:30]} e5 {[%emt 0:02:30]} 17. d3 {[%emt 0:00:30]} Rac8 {[%emt 0:00:30]} 18. axb5 {[%emt 0:02:30]} axb5 {[%emt 0:00:30]} 19. Bg5 {[%emt 0:00:30]} Rc6 {[%emt 0:03:30]} 20. Kh1 {[%emt 0:06:30]} Rfc8 {[%emt 0:03:30]} 21. Rfc1 {[%emt 0:01:30]} R8c7 {[%emt 0:04:30]} 22. Ra5 {[%emt 0:14:30]} h6 {[%emt 0:04:30]} 23. Bh4 {[%emt 0:00:30]} Rc5 {[%emt 0:02:30]} 24. Nd1 {[%emt 0:06:30]} e4 {[%emt 0:03:30]} 25. fxe4 {[%emt 0:03:30]} fxe4 {[%emt 0:00:00]} 26. Nf2 {[%emt 0:00:30]} e3 {[%emt 0:10:59]} 27. Ne4 {[%emt 0:00:30]} Rf7 {[%emt 0:01:19]} 28. Nxc5 {[%emt 0:01:30]} Qxc5 {[%emt 0:06:52]} 29. Raa1 {[%emt 0:00:30]} Be5 {[%emt 0:02:23]} 30. Rg1 {[%emt 0:03:24]} Rg7 {[%emt 0:01:43]} 31. Raf1 {[%emt 0:00:55]} Bd6 {[%emt 0:00:28]} 32. Bf6 {[%emt 0:01:27]} Rg6 {[%emt 0:01:05]} 33. c3 {[%emt 0:01:51]} dxc3 {[%emt 0:02:17]} 34. bxc3 {[%emt 0:00:09]} Bc7 {[%emt 0:02:54]} 35. d4 {[%emt 0:05:06]} Qc6 {[%emt 0:00:53]} 36. Be5 {[%emt 0:02:46]} Bxe5 {[%emt 0:00:30]} 37. dxe5 {[%emt 0:00:00]} Qxc3 {[%emt 0:00:36]} 38. Qa2+ {[%emt 0:00:01]} Qc4 {[%emt 0:00:22]} 39. Qxc4+ {[%emt 0:01:13]} bxc4 {[%emt 0:00:03]} 40. Re1 {[%emt 0:00:00]} Kf7 {[%emt 0:00:00]} 41. Rxe3 {[%emt 0:03:08]} Ke6 {[%emt 0:03:06]} 42. Re2 {[%emt 0:00:30]} Rg4 {[%emt 0:05:30]} 43. Rb1 {[%emt 0:05:30]} Be4 {[%emt 0:00:30]} 44. Rb6+ {[%emt 0:01:30]} Kxe5 {[%emt 0:01:30]} 45. Rxh6 {[%emt 0:00:00]} c3 {[%emt 0:00:30]} 46. h3 {[%emt 0:02:00]} Rf4 {[%emt 0:01:30]} 47. Kh2 {[%emt 0:02:30]} Kd4 {[%emt 0:00:30]} 48. Rd6+ {[%emt 0:02:30]} Kc5 {[%emt 0:01:30]} 49. Rd8 {[%emt 0:01:30]} Bc6 {[%emt 0:01:30]} 50. Re5+ {[%emt 0:03:30]} Kc4 {[%emt 0:01:20]} 51. Re6 {[%emt 0:01:30]} Bd5 {[%emt 0:00:36]} 52. Re3 {[%emt 0:00:30]} c2 {[%emt 0:07:24]} 53. Rc8+ {[%emt 0:01:30]} Kd4 {[%emt 0:00:01]} 54. Re2 {[%emt 0:00:00]} Be4 {[%emt 0:00:10]} 55. Rexc2 {[%emt 0:00:00]} Bxc2 {[%emt 0:00:30]} 56. Rxc2 {[%emt 0:00:30]} Ke5 {[%emt 0:00:06]} 57. Kg3 {[%emt 0:00:00]} Ra4 {[%emt 0:00:23]} 58. Rf2 {[%emt 0:00:00]} Ra8 {[%emt 0:00:00]} 59. h4 {[%emt 0:00:30]} Ra3+ {[%emt 0:00:00]} 60. Rf3 {[%emt 0:00:00]} Ra1 {[%emt 0:00:00]} 61. Kg4 {[%emt 0:01:00]} Ra8 {[%emt 0:00:04]} 62. g3 {[%emt 0:00:00]} Ke4 {[%emt 0:00:23]} 63. Rf1 {[%emt 0:00:00]} Rg8+ {[%emt 0:00:30]} 64. Kh3 {[%emt 0:00:30]} Rh8 {[%emt 0:00:00]} 65. g4 {[%emt 0:00:00]} Kd5 {[%emt 0:00:43]} 1-0

[Event "Turkish Championship 2019"]
[Site "Antalya-Kemer"]
[Date "2019.12.01"]
[Round "9.4"]
[White "Ozen, Deniz"]
[Black "Gokerkan, Cem Kaan"]
[Result "1-0"]
[ECO "B27"]
[WhiteElo "2422"]
[BlackElo "2452"]
[Annotator "ChessBase"]
[PlyCount "57"]
[EventDate "2019.11.23"]
[EventType "tourn"]
[EventCountry "TUR"]
[SourceTitle "playchess.com"]
[Source "ChessBase"]
[SourceQuality "1"]
[TimeControl "40/5400+30:1800+30"]

1. e4 {[%emt 0:00:30]} c5 {[%emt 0:00:30]} 2. Nf3 {[%emt 0:00:30]} g6 {[%emt 0:00:00]} 3. c3 {[%emt 0:00:00]} Bg7 {[%emt 0:01:00]} 4. Bc4 {[%emt 0:00:00]} e6 {[%emt 0:12:30]} 5. d4 {[%emt 0:04:30]} cxd4 {[%emt 0:02:30]} 6. cxd4 {[%emt 0:00:30]} d5 {[%emt 0:06:30]} 7. exd5 {[%emt 0:08:30]} exd5 {[%emt 0:00:30]} 8. Bb5+ {[%emt 0:08:30]} Nc6 {[%emt 0:19:30]} 9. Bg5 {[%emt 0:16:30]} Nge7 {[%emt 0:02:30]} 10. O-O {[%emt 0:01:30]} O-O {[%emt 0:01:30]} 11. Bxc6 {[%emt 0:17:30]} bxc6 {[%emt 0:00:30]} 12. h3 {[%emt 0:00:30]} Rb8 {[%emt 0:17:30]} 13. Qc1 {[%emt 0:04:30]} Re8 {[%emt 0:02:30]} 14. Nbd2 {[%emt 0:03:30]} f6 {[%emt 0:13:46]} 15. Bf4 {[%emt 0:00:30]} Rb5 {[%emt 0:00:25]} 16. Re1 {[%emt 0:04:30]} g5 {[%emt 0:01:50]} 17. Bh2 {[%emt 0:01:30]} h5 {[%emt 0:04:59]} 18. Nb3 {[%emt 0:08:16]} Bf5 {[%emt 0:02:33]} 19. Qc3 {[%emt 0:03:28]} Qc8 {[%emt 0:04:19]} 20. Nc5 {[%emt 0:01:54]} Bf8 {[%emt 0:01:44]} 21. Qe3 {[%emt 0:07:54]} Kf7 {[%emt 0:01:20]} 22. Nxg5+ {[%emt 0:02:11]} fxg5 {[%emt 0:00:30]} 23. Qxg5 {[%emt 0:00:00]} Rxb2 {[%emt 0:01:30]} 24. Be5 {[%emt 0:03:10]} Ng8 {[%emt 0:00:02]} 25. Re3 {[%emt 0:00:08]} Rxe5 {[%emt 0:00:39]} 26. Rxe5 {[%emt 0:00:24]} Bg6 {[%emt 0:00:38]} 27. Rae1 {[%emt 0:00:36]} Bd6 {[%emt 0:00:27]} 28. Re6 {[%emt 0:00:26]} Be4 {[%emt 0:00:53]} 29. Rxd6 {[%emt 0:00:30]} 1-0

[Event "Turkish Championship 2019"]
[Site "Antalya-Kemer"]
[Date "2019.12.02"]
[Round "10.2"]
[White "Cansun, Can Alp"]
[Black "Ozen, Deniz"]
[Result "0-1"]
[ECO "C07"]
[WhiteElo "2203"]
[BlackElo "2422"]
[Annotator "ChessBase"]
[PlyCount "168"]
[EventDate "2019.11.23"]
[EventType "tourn"]
[EventCountry "TUR"]
[SourceTitle "playchess.com"]
[Source "ChessBase"]
[SourceQuality "1"]
[TimeControl "40/5400+30:1800+30"]

1. e4 {[%emt 0:00:30]} e6 {[%emt 0:00:30]} 2. d4 {[%emt 0:00:30]} d5 {[%emt 0:00:30]} 3. Nd2 {[%emt 0:00:30]} c5 {[%emt 0:00:30]} 4. exd5 {[%emt 0:00:30]} Qxd5 {[%emt 0:00:30]} 5. Ngf3 {[%emt 0:00:00]} cxd4 {[%emt 0:00:00]} 6. Bc4 {[%emt 0:00:00]} Qd7 {[%emt 0:00:00]} 7. O-O {[%emt 0:00:00]} Nc6 {[%emt 0:00:00]} 8. Nb3 {[%emt 0:00:00]} a6 {[%emt 0:00:00]} 9. Nbxd4 {[%emt 0:00:00]} Nxd4 {[%emt 0:00:30]} 10. Nxd4 {[%emt 0:00:00]} Qc7 {[%emt 0:00:30]} 11. Bb3 {[%emt 0:00:00]} Bd6 {[%emt 0:01:30]} 12. Re1 {[%emt 0:09:00]} Ne7 {[%emt 0:04:30]} 13. h3 {[%emt 0:08:30]} O-O {[%emt 0:01:30]} 14. c3 {[%emt 0:03:30]} Ng6 {[%emt 0:11:30]} 15. Qf3 {[%emt 0:05:30]} Rb8 {[%emt 0:11:30]} 16. a4 {[%emt 0:05:30]} b6 {[%emt 0:05:30]} 17. Bc2 {[%emt 0:02:30]} Bb7 {[%emt 0:02:30]} 18. Be4 {[%emt 0:06:30]} Bxe4 {[%emt 0:03:30]} 19. Qxe4 {[%emt 0:00:30]} Qb7 {[%emt 0:06:30]} 20. b3 {[%emt 0:04:30]} Qxe4 {[%emt 0:03:30]} 21. Rxe4 {[%emt 0:00:30]} Ne7 {[%emt 0:03:30]} 22. Nf3 {[%emt 0:17:30]} Rfc8 {[%emt 0:06:30]} 23. Bd2 {[%emt 0:02:30]} Nc6 {[%emt 0:06:30]} 24. Ree1 {[%emt 0:12:30]} h6 {[%emt 0:06:30]} 25. Red1 {[%emt 0:00:30]} Be7 {[%emt 0:04:30]} 26. Rab1 {[%emt 0:02:08]} Bf6 {[%emt 0:00:30]} 27. c4 {[%emt 0:04:03]} Rb7 {[%emt 0:02:11]} 28. b4 {[%emt 0:03:24]} Ne7 {[%emt 0:04:51]} 29. Rdc1 {[%emt 0:00:28]} Rbc7 {[%emt 0:02:13]} 30. Be3 {[%emt 0:04:11]} Rxc4 {[%emt 0:00:44]} 31. Rxc4 {[%emt 0:00:30]} Rxc4 {[%emt 0:00:00]} 32. Bxb6 {[%emt 0:00:00]} Nd5 {[%emt 0:00:31]} 33. Ba5 {[%emt 0:00:24]} Nc3 {[%emt 0:00:05]} 34. Re1 {[%emt 0:03:27]} Nxa4 {[%emt 0:00:14]} 35. Ne5 {[%emt 0:00:07]} Rc2 {[%emt 0:01:52]} 36. g3 {[%emt 0:01:04]} Nc3 {[%emt 0:00:31]} 37. Kf1 {[%emt 0:00:45]} Nd5 {[%emt 0:01:02]} 38. Nd3 {[%emt 0:01:36]} Bd4 {[%emt 0:03:02]} 39. Re2 {[%emt 0:01:42]} Rc3 {[%emt 0:00:42]} 40. Rd2 {[%emt 0:00:00]} Ra3 {[%emt 0:00:00]} 41. Nc1 {[%emt 0:05:11]} Ra1 {[%emt 0:09:32]} 42. Rxd4 {[%emt 0:01:30]} Rxc1+ {[%emt 0:00:00]} 43. Kg2 {[%emt 0:00:00]} Kf8 {[%emt 0:02:00]} 44. Rd2 {[%emt 0:00:00]} Rc8 {[%emt 0:06:30]} 45. Rb2 {[%emt 0:02:30]} Rb8 {[%emt 0:01:30]} 46. Kf3 {[%emt 0:03:30]} Ke7 {[%emt 0:00:30]} 47. Ke4 {[%emt 0:02:30]} Kd6 {[%emt 0:01:30]} 48. h4 {[%emt 0:03:30]} f5+ {[%emt 0:02:03]} 49. Kd3 {[%emt 0:00:30]} e5 {[%emt 0:00:18]} 50. Rb1 {[%emt 0:00:57]} Ne7 {[%emt 0:03:02]} 51. Ra1 {[%emt 0:03:15]} Nc6 {[%emt 0:02:27]} 52. Kc4 {[%emt 0:00:46]} Nd4 {[%emt 0:09:09]} 53. f4 {[%emt 0:02:04]} Rc8+ {[%emt 0:00:18]} 54. Kd3 {[%emt 0:00:07]} Nb5 {[%emt 0:00:50]} 55. fxe5+ {[%emt 0:02:34]} Kxe5 {[%emt 0:00:01]} 56. Bb6 {[%emt 0:01:44]} Rc3+ {[%emt 0:00:05]} 57. Kd2 {[%emt 0:00:38]} Ra3 {[%emt 0:01:35]} 58. Rxa3 {[%emt 0:02:32]} Nxa3 {[%emt 0:00:01]} 59. Kd3 {[%emt 0:00:01]} g6 {[%emt 0:02:22]} 60. Be3 {[%emt 0:00:37]} h5 {[%emt 0:00:19]} 61. Bc1 {[%emt 0:01:01]} Nb5 {[%emt 0:00:06]} 62. Bd2 {[%emt 0:06:08]} Kd5 {[%emt 0:00:36]} 63. Be3 {[%emt 0:00:14]} Nd6 {[%emt 0:00:46]} 64. Bf4 {[%emt 0:00:34]} Nc4 {[%emt 0:00:36]} 65. Kc3 {[%emt 0:03:13]} Ne5 {[%emt 0:00:48]} 66. Kb3 {[%emt 0:00:38]} Nc6 {[%emt 0:00:48]} 67. Kc3 {[%emt 0:01:20]} Nd4 {[%emt 0:01:47]} 68. Kd3 {[%emt 0:00:29]} Ne6 {[%emt 0:00:23]} 69. Bd2 {[%emt 0:00:15]} Nd8 {[%emt 0:00:19]} 70. Be1 {[%emt 0:00:37]} Nf7 {[%emt 0:00:54]} 71. Bc3 {[%emt 0:00:39]} g5 {[%emt 0:00:28]} 72. hxg5 {[%emt 0:00:48]} Nxg5 {[%emt 0:00:02]} 73. Bd2 {[%emt 0:00:00]} Nf3 {[%emt 0:00:22]} 74. Bc3 {[%emt 0:00:27]} Ng5 {[%emt 0:01:11]} 75. Bd2 {[%emt 0:00:19]} Ne4 {[%emt 0:00:24]} 76. Bf4 {[%emt 0:00:06]} Nf6 {[%emt 0:00:37]} 77. Bc1 {[%emt 0:01:28]} Ng4 {[%emt 0:00:11]} 78. Bf4 {[%emt 0:00:06]} Ne5+ {[%emt 0:00:29]} 79. Kc3 {[%emt 0:00:19]} Ke4 {[%emt 0:00:36]} 80. Bg5 {[%emt 0:00:57]} Kf3 {[%emt 0:00:39]} 81. Bf4 {[%emt 0:00:18]} h4 {[%emt 0:00:34]} 82. Bxe5 {[%emt 0:00:28]} h3 {[%emt 0:00:40]} 83. g4 {[%emt 0:00:06]} f4 {[%emt 0:00:43]} 84. g5 {[%emt 0:00:49]} h2 {[%emt 0:00:01]} 0-1

[Event "Turkish Championship 2019"]
[Site "Antalya-Kemer"]
[Date "2019.12.03"]
[Round "11.4"]
[White "Haznedaroglu, Kivanc"]
[Black "Cansun, Can Alp"]
[Result "1-0"]
[ECO "B90"]
[WhiteElo "2461"]
[BlackElo "2203"]
[Annotator "RC"]
[PlyCount "115"]
[EventDate "2019.11.23"]
[EventType "tourn"]
[EventCountry "TUR"]
[SourceTitle "playchess.com"]
[Source "ChessBase"]
[SourceQuality "1"]
[TimeControl "40/5400+30:1800+30"]

1. e4 {[%emt 0:00:30]} c5 {[%emt 0:00:30]} 2. Nf3 {[%emt 0:00:30]} Nc6 {[%emt 0:00:30]} 3. d4 {[%emt 0:00:30]} cxd4 {[%emt 0:00:00]} 4. Nxd4 {[%emt 0:00:00]} Qb6 {[%emt 0:00:00]} 5. Nb5 {[%emt 0:04:00]} a6 {[%emt 0:00:30]} 6. Be3 {[%emt 0:00:30]} Qd8 {[%emt 0:00:30]} 7. Nd4 {[%emt 0:00:30]} Nf6 {[%emt 0:00:30]} 8. Nc3 {[%emt 0:00:00]} d6 {[%emt 0:03:30]} 9. f3 {[%emt 0:00:00]} e5 {[%emt 0:04:30]} 10. Nb3 {[%emt 0:07:30]} Be6 {[%emt 0:01:30]} 11. Nd5 {[%emt 0:01:30]} Bxd5 {[%emt 0:06:30]} 12. exd5 {[%emt 0:05:30]} Ne7 {[%emt 0:01:30]} 13. c4 {[%emt 0:00:30]} g6 {[%emt 0:03:30]} 14. Bd3 {[%emt 0:03:30]} Bg7 {[%emt 0:01:30]} 15. O-O {[%emt 0:00:30]} O-O {[%emt 0:01:30]} 16. Nd2 {[%emt 0:05:30]} Nh5 {[%emt 0:08:30]} 17. Qb3 {[%emt 0:03:30]} Nf4 {[%emt 0:04:30]} 18. Rfe1 {[%emt 0:03:30]} b5 {[%emt 0:06:30]} 19. Bf2 {[%emt 0:22:30]} bxc4 {[%emt 0:03:30]} 20. Nxc4 {[%emt 0:03:30]} Rb8 {[%emt 0:06:30]} 21. Qa3 {[%emt 0:00:00]} Nexd5 {[%emt 0:01:30]} 22. Bf1 {[%emt 0:05:00]} Nb4 {[%emt 0:03:30]} 23. Rac1 {[%emt 0:00:30]} d5 {[%emt 0:14:30]} 24. Nxe5 {[%emt 0:07:30]} Re8 {[%emt 0:00:30]} 25. Ng4 {[%emt 0:01:30]} Rxe1 {[%emt 0:02:30]} 26. Bxe1 {[%emt 0:00:30]} a5 {[%emt 0:12:16]} 27. Bg3 {[%emt 0:06:25]} Qb6+ {[%emt 0:05:03]} 28. Kh1 {[%emt 0:02:53]} g5 {[%emt 0:00:08]} 29. Bf2 {[%emt 0:03:59]} d4 {[%emt 0:00:32]} 30. Bg1 {[%emt 0:01:02]} Nbd5 {[%emt 0:01:14]} 31. g3 {[%emt 0:04:54]} Ne6 {[%emt 0:00:43]} 32. Bc4 {[%emt 0:02:06]} Rc8 {[%emt 0:01:10]} 33. b3 {[%emt 0:00:35]} Nc3 {[%emt 0:01:32]} 34. Qe7 {[%emt 0:04:07]} Qd8 {[%emt 0:03:07]} 35. Qxd8+ {[%emt 0:01:36]} Rxd8 {[%emt 0:00:30]} 36. Nf2 {[%emt 0:00:07]} Nxa2 {[%emt 0:00:35]} 37. Ra1 {[%emt 0:00:13]} Nb4 {[%emt 0:00:20]} 38. Rxa5 {[%emt 0:00:20]} Nc6 {[%emt 0:02:44]} 39. Rd5 {[%emt 0:01:37]} Ra8 {[%emt 0:00:35]} 40. Nd3 {[%emt 0:00:00]} h6 {[%emt 0:00:00]} 41. f4 {[%emt 0:07:36]} gxf4 {[%emt 0:06:31]} 42. gxf4 {[%emt 0:00:30]} Ra1 {[%emt 0:02:30]} 43. h4 {[%emt 0:10:38]} Ne7 {[%emt 0:07:08]} 44. Rb5 {[%emt 0:00:18]} Bf6 {[%emt 0:02:28]} 45. f5 {[%emt 0:06:47]} Nf8 {[%emt 0:10:16]} 46. Kg2 {[%emt 0:00:14]} Rd1 {[%emt 0:01:57]} 47. Bf2 {[%emt 0:01:11]} Rd2 {[%emt 0:02:30]} 48. Kf3 {[%emt 0:00:05]} Nc8 {[%emt 0:00:55]} 49. Bg3 {[%emt 0:00:42]} Nd7 {[%emt 0:00:42]} 50. Rb7 {[%emt 0:04:02]} Ncb6 {[%emt 0:00:05]} 51. Bb5 {[%emt 0:00:07]} Kg7 {[%emt 0:00:38]} 52. Bf4 {[%emt 0:02:35]} Rxd3+ {[%emt 0:00:35]} 53. Bxd3 {[%emt 0:00:07]} Nc5 {[%emt 0:00:41]} 54. Rxb6 {[%emt 0:00:07]} Nxd3 {[%emt 0:00:04]} 55. Bxh6+ {[%emt 0:00:30]} Kxh6 {[%emt 0:00:06]} 56. Rxf6+ {[%emt 0:00:02]} Kg7 {[%emt 0:00:06]} 57. Rd6 {[%emt 0:00:13]} Nc5 {[%emt 0:00:16]} 58. b4 {[%emt 0:00:07]} 1-0